Workbook

Sheet Vehicle Polygon
D2: RT-Range vehicle polygon profile creator
F5: Forward | G5: Right
B6: 1. Enter vehicle legnth and width here | D6: Vehicle legnth | F6: 4
D7: Vehicle width (exlcuding door mirrors) | F7: 1.8 | R7: ="-range1_polygon_ref_num1" -> -range1_polygon_ref_num1
D8: Origin to the extent of RHS door mirror | F8: 2.4 | G8: 1 | R8: ="-range1_polygon_origin0_0_0" -> -range1_polygon_origin0_0_0
R9: ="-range1_polygon_num_points24" -> -range1_polygon_num_points24
B10: 2. Enter the origin point from the RT | D10: Vehicle section | E10: Polygon point | F10: Forward | G10: Right | H10: Notes | R10: =_xlfn.CONCAT("-range1_polygon_point",E11,"_",F11,"_",G11) -> -range1_polygon_point1_3.69_-0.85
D11: Front left | E11: 1 | F11: =F17 -> 3.69 | G11: =G34+0.05 -> -0.85 | H11: Front left corner | R11: -range1_polygon_point2_3.96_-0.55
E12: 2 | F12: =F16 -> 3.96 | G12: =G11+0.3 -> -0.55 | R12: -range1_polygon_point3_4_-0.25
E13: 3 | F13: =F15 -> 4 | G13: =G12+0.3 -> -0.25 | R13: -range1_polygon_point4_4_0
D14: Front centre | E14: 4 | F14: =F6+F26 -> 4 | G14: =G26 -> 0 | H14: Car length | R14: -range1_polygon_point5_4_0.25
D15: Front Right | E15: 5 | F15: =F14 -> 4 | G15: =G16-0.3 -> 0.25 | R15: -range1_polygon_point6_3.96_0.55
E16: 6 | F16: =F15-0.04 -> 3.96 | G16: =G17-0.3 -> 0.55 | R16: -range1_polygon_point7_3.69_0.85
E17: 7 | F17: =F16-0.27 -> 3.69 | G17: =G18-0.05 -> 0.85 | H17: Front Right corner | R17: -range1_polygon_point8_3.6_0.9
D18: Right side | E18: 8 | F18: =F14-0.4 -> 3.6 | G18: =F7/2+G26 -> 0.9 | H18: Half width of car | R18: -range1_polygon_point9_2.8_0.9
E19: 9 | F19: =F20+0.4 -> 2.8 | G19: =G18 -> 0.9 | H19: Front wheel arch | R19: -range1_polygon_point10_2.4_1
E20: 10 | F20: =F8+F26 -> 2.4 | G20: =G26+G8 -> 1 | H20: Door mirrors | R20: -range1_polygon_point11_2.2_0.9
E21: 11 | F21: =F20-0.2 -> 2.2 | G21: =G18 -> 0.9 | H21: Rear of front door | R21: -range1_polygon_point12_0.77_0.9
E22: 12 | F22: =F23+0.5 -> 0.77 | G22: =G18 -> 0.9 | H22: Rear wheel arch | R22: -range1_polygon_point13_0.27_0.85
E23: 13 | F23: =F24+0.2 -> 0.27 | G23: =G18-0.05 -> 0.85 | H23: Rear right corner | R23: -range1_polygon_point14_0.07_0.55
D24: Rear right | E24: 14 | F24: =F25+0.05 -> 0.07 | G24: =G23-0.3 -> 0.55 | R24: -range1_polygon_point15_0.02_0.25
E25: 15 | F25: =F26+0.02 -> 0.02 | G25: =G24-0.3 -> 0.25 | R25: -range1_polygon_point16_0_0
D26: Rear centre | E26: 16 | F26: 0 | G26: 0 | H26: Origin - rear centre | R26: -range1_polygon_point17_0.02_-0.25
D27: Rear left | E27: 17 | F27: =F25 -> 0.02 | G27: =G28+0.3 -> -0.25 | R27: -range1_polygon_point18_0.07_-0.55
E28: 18 | F28: =F24 -> 0.07 | G28: =G29+0.3 -> -0.55 | H28: Rear left corner | R28: -range1_polygon_point19_0.27_-0.85
D29: Left side | E29: 19 | F29: =F23 -> 0.27 | G29: =G34+0.05 -> -0.85 | R29: -range1_polygon_point20_0.77_-0.9
E30: 20 | F30: =F22 -> 0.77 | G30: =G34 -> -0.9 | R30: -range1_polygon_point21_2.2_-0.9
E31: 21 | F31: =F21 -> 2.2 | G31: =G34 -> -0.9 | R31: -range1_polygon_point22_2.4_-1
E32: 22 | F32: =F20 -> 2.4 | G32: =G26-G8 -> -1 | R32: -range1_polygon_point23_2.8_-0.9
E33: 23 | F33: =F19 -> 2.8 | G33: =G34 -> -0.9 | R33: -range1_polygon_point24_3.6_-0.9
E34: 24 | F34: =F18 -> 3.6 | G34: =G26-F7/2 -> -0.9 | R34: ="-range1_polygon_on" -> -range1_polygon_on

Sheet Kerb Polygon
C2: RT-Range kerb polygon profile creator
B6: Start here >>> Enter the kerb measurements into this table | C6: Polygon point | D6: Forward | E6: Right | F6: Notes
C7: 1 | D7: 0 | E7: 0 | F7: Origin | R7: ="-range1_polygon_ref_num1" -> -range1_polygon_ref_num1
C8: 2 | D8: 0 | E8: 1 | R8: ="-range1_polygon_origin0_0_0" -> -range1_polygon_origin0_0_0
C9: 3 | D9: 0 | E9: 2 | R9: ="-range1_polygon_num_points18" -> -range1_polygon_num_points18
C10: 4 | D10: 0 | E10: 3 | R10: =_xlfn.CONCAT("-range1_polygon_point",C7,"_",D7,"_",E7) -> -range1_polygon_point1_0_0
C11: 5 | D11: 0 | E11: 4 | R11: -range1_polygon_point2_0_1
C12: 6 | D12: 0.5 | E12: 4 | R12: -range1_polygon_point3_0_2
C13: 7 | D13: 0.5 | E13: 3 | R13: -range1_polygon_point4_0_3
C14: 8 | D14: 0.5 | E14: 2 | R14: -range1_polygon_point5_0_4
C15: 9 | D15: 0.5 | E15: 1 | R15: -range1_polygon_point6_0.5_4
C16: 10 | D16: 0.5 | E16: 0 | R16: -range1_polygon_point7_0.5_3
C17: 11 | D17: 0.5 | E17: -1 | R17: -range1_polygon_point8_0.5_2
C18: 12 | D18: 0.5 | E18: -2 | R18: -range1_polygon_point9_0.5_1
C19: 13 | D19: 0.5 | E19: -3 | R19: -range1_polygon_point10_0.5_0
C20: 14 | D20: 0.5 | E20: -4 | R20: -range1_polygon_point11_0.5_-1
C21: 15 | D21: 0 | E21: -4 | R21: -range1_polygon_point12_0.5_-2
C22: 16 | D22: 0 | E22: -3 | R22: -range1_polygon_point13_0.5_-3
C23: 17 | D23: 0 | E23: -2 | R23: -range1_polygon_point14_0.5_-4
C24: 18 | D24: 0 | E24: 0 | R24: -range1_polygon_point15_0_-4
R25: -range1_polygon_point16_0_-3
R26: -range1_polygon_point17_0_-2
R27: -range1_polygon_point18_0_0
R28: ="-range1_polygon_on" -> -range1_polygon_on

Sheet EPTa Polygon
D2: RT-Range EPTa target polygon template
B7: 2. Enter the measurements forward and right of the origin here | D7: EPTa point | E7: Polygon point | F7: Forward (m) | G7: Right (m) | H7: Notes | R7: ="-range1_polygon_ref_num1" -> -range1_polygon_ref_num1
D8: Origin | E8: 1 | F8: 0 | G8: 0 | H8: Right elbow | R8: ="-range1_polygon_origin0_0_0" -> -range1_polygon_origin0_0_0
E9: 2 | F9: 0 | G9: -0.24 | H9: Back left platform | R9: ="-range1_polygon_num_points8" -> -range1_polygon_num_points8
E10: 3 | F10: 0.25 | G10: -0.24 | H10: Right middle | R10: =_xlfn.CONCAT("-range1_polygon_point",E8,"_",F8,"_",G8) -> -range1_polygon_point1_0_0
E11: 4 | F11: 0.5 | G11: -0.24 | H11: Top left | R11: =_xlfn.CONCAT("-range1_polygon_point",E9,"_",F9,"_",G9) -> -range1_polygon_point2_0_-0.24
E12: 5 | F12: 0.5 | G12: 0 | H12: Top middle | R12: -range1_polygon_point3_0.25_-0.24
E13: 6 | F13: 0.5 | G13: 0.36 | H13: Top right | R13: -range1_polygon_point4_0.5_-0.24
E14: 7 | F14: 0.25 | G14: 0.36 | H14: Middle right | R14: -range1_polygon_point5_0.5_0
E15: 8 | F15: 0 | G15: 0.36 | H15: Bottom right | R15: -range1_polygon_point6_0.5_0.36
R16: -range1_polygon_point7_0.25_0.36
R17: -range1_polygon_point8_0_0.36
R18: ="-range1_polygon_on" -> -range1_polygon_on

Sheet EPTc Polygon
D2: RT-Range EPTc target polygon template
B7: 2. Enter the measurements forward and right of the origin here | D7: EPTc point | E7: Polygon point | F7: Forward (m) | G7: Right (m) | H7: Notes | R7: ="-range1_polygon_ref_num1" -> -range1_polygon_ref_num1
D8: Origin | E8: 1 | F8: 0 | G8: 0 | H8: Right elbow | R8: ="-range1_polygon_origin0_0_0" -> -range1_polygon_origin0_0_0
E9: 2 | F9: 0 | G9: -0.315 | H9: Back left platform | R9: ="-range1_polygon_num_points8" -> -range1_polygon_num_points8
E10: 3 | F10: 0.25 | G10: -0.315 | H10: Left middle | R10: =_xlfn.CONCAT("-range1_polygon_point",E8,"_",F8,"_",G8) -> -range1_polygon_point1_0_0
E11: 4 | F11: 0.5 | G11: -0.315 | H11: Top left | R11: =_xlfn.CONCAT("-range1_polygon_point",E9,"_",F9,"_",G9) -> -range1_polygon_point2_0_-0.315
E12: 5 | F12: 0.5 | G12: 0 | H12: Top middle | R12: -range1_polygon_point3_0.25_-0.315
E13: 6 | F13: 0.5 | G13: 0.396 | H13: Top right | R13: -range1_polygon_point4_0.5_-0.315
E14: 7 | F14: 0.25 | G14: 0.396 | H14: Right middle | R14: -range1_polygon_point5_0.5_0
E15: 8 | F15: 0 | G15: 0.396 | H15: Bottom right | R15: -range1_polygon_point6_0.5_0.396
R16: -range1_polygon_point7_0.25_0.396
R17: -range1_polygon_point8_0_0.396
R18: ="-range1_polygon_on" -> -range1_polygon_on

Sheet EBT Polygon
D2: RT-Range EBT target polygon template
B7: 2. Enter the measurements forward and right of the origin here | D7: EBT point | E7: Polygon point | F7: Forward (m) | G7: Right (m) | H7: Notes | R7: ="-range1_polygon_ref_num1" -> -range1_polygon_ref_num1
D8: Origin | E8: 1 | F8: 0 | G8: 0 | H8: Left elbow | R8: ="-range1_polygon_origin0_0_0" -> -range1_polygon_origin0_0_0
E9: 2 | F9: 0 | G9: -0.3 | H9: Front left handle bar | R9: ="-range1_polygon_num_points14" -> -range1_polygon_num_points14
E10: 3 | F10: 0.2 | G10: -0.3 | H10: Back left front tyre | R10: =_xlfn.CONCAT("-range1_polygon_point",E8,"_",F8,"_",G8) -> -range1_polygon_point1_0_0
E11: 4 | F11: 0.2 | G11: -0.74 | H11: Front tyre, front left | R11: =_xlfn.CONCAT("-range1_polygon_point",E9,"_",F9,"_",G9) -> -range1_polygon_point2_0_-0.3
E12: 5 | F12: 0.3 | G12: -0.74 | H12: Fronttyre, front right | R12: -range1_polygon_point3_0.2_-0.3
E13: 6 | F13: 0.3 | G13: -0.3 | H13: Right back front of wheel | R13: -range1_polygon_point4_0.2_-0.74
E14: 7 | F14: 0.5 | G14: -0.3 | H14: Front right handle bar | R14: -range1_polygon_point5_0.3_-0.74
E15: 8 | F15: 0.5 | G15: 0 | H15: Right elbow | R15: -range1_polygon_point6_0.3_-0.3
E16: 9 | F16: 0.5 | G16: 0.4 | H16: Right shoulder | R16: -range1_polygon_point7_0.5_-0.3
E17: 10 | F17: 0.3 | G17: 0.4 | H17: Back tyre, front right | R17: -range1_polygon_point8_0.5_0
E18: 11 | F18: 0.3 | G18: 0.86 | H18: Back tyre, back right | R18: -range1_polygon_point9_0.5_0.4
E19: 12 | F19: 0.2 | G19: 0.86 | H19: Back tyre, back left | R19: -range1_polygon_point10_0.3_0.4
E20: 13 | F20: 0.2 | G20: 0.4 | H20: Back tyre, front left | R20: -range1_polygon_point11_0.3_0.86
E21: 14 | F21: 0 | G21: 0.4 | H21: Left shoulder | R21: -range1_polygon_point12_0.2_0.86
R22: -range1_polygon_point13_0.2_0.4
R23: -range1_polygon_point14_0_0.4
R24: ="-range1_polygon_on" -> -range1_polygon_on
